bitfinex/quotes_SOLUSD_20250920
["timestamp","ask_amount","ask_price","bid_price","bid_amount"]
[1758387073548,14.96229068,240.38,240.37,0.2]
[1758387073731,18.06251366,240.38,240.37,0.2]
[1758387082547,18.72251366,240.38,240.37,0.2]
[1758387089266,15.62229068,240.38,240.37,0.2]
[1758387089439,18.72073149,240.38,240.37,0.2]
[1758387094065,15.62229068,240.38,240.37,0.2]
[1758387097242,18.72071801,240.38,240.37,0.2]
[1758387101168,18.72097163,240.38,240.37,0.2]
[1758387107257,22.20803858,240.38,240.37,0.2]
[1758387107458,18.72097163,240.38,240.37,0.2]
[1758387109272,18.06097163,240.38,240.37,0.2]
[1758387113079,18.73097163,240.38,240.37,0.2]
[1758387115787,18.06097163,240.38,240.37,0.2]
[1758387116402,18.74097163,240.38,240.37,0.2]
[1758387117485,18.06097163,240.38,240.37,0.2]
[1758387118189,18.74097163,240.38,240.37,0.2]
[1758387118391,18.06097163,240.38,240.37,0.2]
[1758387118893,18.74097163,240.38,240.37,0.2]
[1758387121978,2.78301626,240.38,240.37,0.87]
[1758387122183,2.78301626,240.38,240.37,20.89014027]
[1758387123282,3.48706695,240.45,240.38,13.59559401]
[1758387123478,5.88023009,240.44,240.42,2.26429332]
[1758387123693,8.31596073,240.45,240.43,31.74]
[1758387123997,5.88023135,240.44,240.43,31.74]
[1758387125302,2.78537032,240.44,240.43,31.74]
[1758387133395,2.78537032,240.44,240.43,32.42]
[1758387138032,2.78537032,240.46,240.43,32.42]
[1758387138330,2.78537032,240.45,240.44,0.68]
[1758387138493,2.78537032,240.45,240.44,32.42]
[1758387138925,2.78537032,240.45,240.44,31.74]
[1758387139317,2.78537032,240.45,240.44,32.42]
[1758387139521,2.78537032,240.47,240.45,13.59559401]
[1758387139708,2.77763955,240.51,240.47,13.59559401]
[1758387140027,2.77763955,240.5,240.48,32.42]
[1758387140211,2.77763955,240.49,240.48,32.42]
[1758387140400,5.04193287,240.52,240.48,31.74]
[1758387140605,0.67,240.49,240.48,31.74]
[1758387140801,2.77763955,240.5,240.48,31.74]
[1758387141010,2.77763955,240.49,240.48,31.74]
[1758387141316,2.77763955,240.5,240.48,32.42]
[1758387141614,14.76715856,240.52,240.48,32.42]
[1758387141615,2.77763955,240.49,240.48,32.42]
[1758387141815,2.77763955,240.51,240.48,32.42]
[1758387142015,2.77763955,240.5,240.48,32.42]
[1758387142216,2.77763955,240.51,240.48,32.42]
[1758387142398,2.77763955,240.51,240.49,0.68]
[1758387142605,2.26429332,240.53,240.49,0.68]
[1758387142606,2.77763955,240.52,240.5,31.74]
[1758387142803,2.77763955,240.51,240.5,31.74]
[1758387143002,2.77763955,240.52,240.5,31.74]
[1758387143213,2.77763955,240.51,240.5,31.74]
[1758387143398,2.77763955,240.52,240.5,31.74]
[1758387143805,3.44763955,240.52,240.5,31.74]
[1758387144003,2.77763955,240.51,240.5,31.74]
[1758387144209,3.44763955,240.52,240.5,31.74]
[1758387144522,3.44763955,240.52,240.47,18.43411365]
[1758387144722,7.60534149,240.52,240.48,32.4]
[1758387145825,2.77763955,240.52,240.49,0.68]
[1758387146009,2.77763955,240.52,240.5,31.72]
[1758387148512,2.77763955,240.52,240.5,32.38]
[1758387149213,2.77763955,240.52,240.5,31.72]
[1758387149816,2.77763955,240.52,240.51,31.72]
[1758387150012,6.93530857,240.52,240.51,31.72]
[1758387150197,7.61530857,240.52,240.51,31.72]
[1758387150825,7.61530857,240.52,240.48,0.66]
[1758387151026,7.61530857,240.52,240.49,31.72]
[1758387153323,7.61530857,240.52,240.49,32.38]
[1758387153828,7.61530857,240.52,240.49,31.72]
[1758387154627,20.11817381,240.52,240.49,31.72]
[1758387154809,17.34053426,240.52,240.49,31.72]
[1758387155128,4.83766902,240.52,240.49,31.72]
[1758387155708,12.50286524,240.53,240.5,14.25559401]
[1758387155913,12.50286524,240.53,240.51,0.66]
[1758387156141,12.50286524,240.53,240.52,47.57988733]
[1758387156424,12.50286524,240.53,240.52,45.97559401]
[1758387156622,12.50286524,240.53,240.52,48.23988733]
[1758387156842,4.15692471,240.57,240.52,45.97559401]
[1758387157021,7.60824504,240.57,240.53,0.66]
[1758387157222,20.10850547,240.57,240.53,0.66]
[1758387157409,2.77132033,240.56,240.53,0.66]
[1758387157837,2.77132033,240.56,240.54,31.72]
[1758387159028,12.50026043,240.57,240.54,31.72]
[1758387159235,0.1,240.59,240.55,0.66]
[1758387159406,12.59973959,240.59,240.54,33.98429332]
[1758387159609,2.77133334,240.58,240.55,0.66]
[1758387159835,2.77133334,240.58,240.56,0.66]
[1758387160021,2.77133334,240.58,240.57,31.72]
[1758387160538,0.1,240.59,240.58,13.59559401]
[1758387160715,0.1,240.59,240.58,16.51988733]
[1758387160915,0.1,240.59,240.58,20.67650882]
[1758387161242,0.1,240.65,240.58,31.4837247]
[1758387161546,0.1,240.65,240.64,15.85988733]
[1758387161735,0.1,240.65,240.64,47.57988733]
[1758387161919,0.1,240.65,240.64,48.23988733]
[1758387162915,0.1,240.65,240.64,48.65544584]
[1758387163116,0.1,240.65,240.64,52.81103094]
[1758387168215,0.1,240.65,240.64,21.09103094]
[1758387168446,0.1,240.65,240.64,52.81103094]
[1758387168631,0.1,240.65,240.64,21.09103094]
[1758387168836,0.1,240.65,240.64,52.81103094]
[1758387169720,0.1,240.65,240.64,51.99189242]
[1758387169916,0.1,240.65,240.64,53.65755275]
[1758387171436,0.1,240.65,240.64,59.43817195]
[1758387171641,0.2,240.69,240.65,44.79559401]
[1758387171823,0.2,240.69,240.65,52.68136801]
[1758387172022,0.2,240.69,240.65,78.64074881]
[1758387172544,0.2,240.69,240.65,80.3060624]
[1758387172943,0.2,240.69,240.65,80.72160364]
[1758387173447,0.2,240.69,240.65,84.87701606]
[1758387173632,0.2,240.69,240.65,84.46147482]
[1758387176142,0.2,240.69,240.65,84.44147482]
[1758387180949,0.2,240.69,240.65,84.42147482]
[1758387182031,0.1,240.71,240.69,13.59559401]
[1758387182236,0.1,240.71,240.7,47.15620373]
[1758387182651,0.1,240.71,240.7,47.81620373]
[1758387182858,0.1,240.71,240.7,49.48110144]
[1758387184457,0.1,240.71,240.7,53.63565067]
[1758387184657,0.1,240.71,240.7,21.93565067]
[1758387184833,0.1,240.71,240.7,53.67565067]
[1758387187943,0.1,240.71,240.7,21.93565067]
[1758387188133,0.1,240.71,240.7,53.67565067]
[1758387189051,0.1,240.71,240.7,52.99565067]
[1758387189435,0.77,240.71,240.7,52.99565067]
[1758387189760,0.77,240.71,240.7,47.17620373]
[1758387189962,0.77,240.71,240.7,46.76074881]
[1758387190156,0.77,240.71,240.7,50.91529804]
[1758387191171,0.1,240.71,240.7,50.91529804]
[1758387194152,0.1,240.71,240.7,52.58033436]
[1758387196038,0.1,240.71,240.7,51.13517956]
[1758387196238,0.1,240.71,240.7,50.91529804]
[1758387196766,0.1,240.71,240.7,52.58033436]
[1758387201151,0.1,240.71,240.7,53.29033436]
[1758387202080,0.1,240.73,240.71,44.79559401]
[1758387202262,0.1,240.77,240.76,44.79559401]
[1758387202449,0.1,240.77,240.76,78.37610019]
[1758387202644,0.77,240.77,240.76,78.37610019]
[1758387202848,0.77,240.77,240.76,46.65610019]
[1758387203050,0.77,240.77,240.76,78.39610019]
[1758387203353,3.54916987,240.77,240.76,78.39610019]
[1758387203551,3.54916987,240.77,240.76,77.98074881]
[1758387204651,3.54916987,240.77,240.76,50.93426268]
[1758387205470,0.77,240.77,240.76,50.93426268]
[1758387206777,0.1,240.77,240.76,50.93426268]
[1758387209365,0.76,240.77,240.76,77.96074881]
[1758387209568,0.76,240.77,240.76,78.37610019]
[1758387210881,0.76,240.77,240.76,82.52961406]
[1758387211077,0.76,240.77,240.76,82.11426268]
[1758387211985,0.76,240.77,240.76,50.39426268]
[1758387212184,0.76,240.77,240.76,82.11426268]
[1758387214483,0.1,240.77,240.76,82.11426268]
[1758387217884,0.76,240.77,240.76,82.09426268]
[1758387220976,0.1,240.77,240.76,82.09426268]
[1758387221583,0.1,240.77,240.76,82.75426268]
[1758387221985,0.1,240.77,240.76,82.09426268]
[1758387226509,0.76,240.77,240.76,82.09426268]
[1758387227393,0.1,240.77,240.76,82.09426268]
[1758387228299,0.76,240.77,240.76,82.09426268]
[1758387228687,0.1,240.77,240.76,82.75426268]
[1758387229078,0.1,240.77,240.76,84.41874472]
[1758387231775,0.1,240.77,240.76,85.22894113]
[1758387235387,0.1,240.77,240.76,84.56894113]
[1758387237197,0.77,240.77,240.76,84.58894113]
[1758387237396,0.77,240.77,240.76,82.92445909]
[1758387237601,0.1,240.77,240.76,82.92445909]
[1758387241307,0.77,240.77,240.76,82.92445909]
[1758387243728,0.77,240.77,240.76,13.59559401]
[1758387243921,0.77,240.77,240.76,45.33559401]
[1758387247628,0.77,240.77,240.76,13.59559401]
[1758387247927,0.77,240.77,240.76,45.33559401]
[1758387248124,3.56295219,240.77,240.76,45.33559401]
[1758387248424,0.77,240.77,240.76,45.33559401]
[1758387249224,0.77,240.77,240.67,10.38733869]
[1758387249225,5.81838895,240.77,240.67,10.38733869]
[1758387249430,5.72812971,240.76,240.71,44.79559401]
[1758387249724,2.25535121,240.74,240.71,13.59559401]
[1758387249921,3.4727785,240.73,240.72,45.33559401]
[1758387250630,3.4727785,240.73,240.68,4.15489446]
[1758387250838,3.4727785,240.72,240.69,45.33559401]
[1758387251030,0.68,240.71,240.69,45.33559401]
[1758387251328,0.68,240.7,240.69,45.33559401]
[1758387251925,0.68,240.7,240.69,49.49031585]
[1758387253807,0.68,240.7,240.69,45.33559401]
[1758387254401,0.68,240.7,240.68,13.59559401]
[1758387254603,0.68,240.7,240.69,31.74]
[1758387254920,4.1538817,240.74,240.66,6.40904626]
[1758387254921,2.25535121,240.72,240.66,6.40904626]
[1758387255225,2.25535121,240.72,240.65,4.15531656]
[1758387255226,5.0437,240.71,240.67,45.33559401]
[1758387255427,0.68,240.7,240.69,13.59559401]
[1758387255935,0.68,240.7,240.68,31.74]
[1758387256121,0.68,240.69,240.68,45.33559401]
[1758387257232,0.68,240.69,240.68,13.59559401]
[1758387257454,0.68,240.69,240.68,45.35559401]
[1758387258435,0.68,240.69,240.63,47.84700066]
[1758387258622,0.68,240.68,240.64,45.35559401]
[1758387258826,0.68,240.67,240.64,45.35559401]
[1758387259741,0.68,240.67,240.64,49.51117374]
[1758387260234,0.68,240.67,240.64,51.76652495]
[1758387260438,0.68,240.69,240.66,13.59559401]
[1758387260645,0.68,240.69,240.67,31.76]
[1758387262238,6.40991553,240.74,240.68,13.59559401]
[1758387262418,7.61604975,240.74,240.7,13.59559401]
[1758387262737,2.78148543,240.74,240.71,31.76]
[1758387262940,0.68,240.73,240.71,31.76]
[1758387264537,0.68,240.72,240.71,45.35559401]
[1758387267346,7.08955526,240.72,240.71,31.76]
[1758387270439,2.25535121,240.73,240.71,31.76]
[1758387270641,4.15402127,240.74,240.71,31.76]
[1758387270830,4.83402127,240.74,240.71,31.76]
[1758387271148,0.68,240.74,240.71,31.76]
[1758387273253,6.40910638,240.75,240.71,31.76]
[1758387273460,0.68,240.73,240.71,31.76]
[1758387276478,0.68,240.72,240.71,31.76]
[1758387277755,4.83420405,240.72,240.71,31.76]
[1758387278431,4.83420405,240.72,240.66,17.75078089]
[1758387278631,4.83420405,240.72,240.67,32.47]
[1758387279163,4.83420405,240.72,240.67,36.62501068]
[1758387279361,4.83420405,240.72,240.69,13.59559401]
[1758387279673,4.83420405,240.72,240.7,31.76]
[1758387280265,4.83420405,240.72,240.71,31.76]
[1758387280572,2.25535121,240.73,240.71,31.76]
[1758387280873,2.93535121,240.73,240.71,31.76]
[1758387281172,3.46273911,240.73,240.71,31.76]
[1758387281351,7.61684433,240.73,240.71,31.76]
[1758387286184,2.78273911,240.72,240.71,31.76]
[1758387288491,9.87231123,240.72,240.71,31.74]
[1758387290985,9.19231123,240.72,240.71,31.74]
[1758387292176,9.87231123,240.72,240.71,31.74]
[1758387292492,7.61696002,240.72,240.71,31.74]
[1758387293194,6.93696002,240.72,240.71,31.74]
[1758387296695,7.59696002,240.72,240.71,31.74]
[1758387296889,7.59696002,240.72,240.68,0.69]
[1758387296890,7.59696002,240.72,240.68,13.59559401]
[1758387297190,3.44273911,240.71,240.69,31.72]
[1758387297495,3.44273911,240.7,240.69,31.72]
[1758387298983,7.59728834,240.7,240.69,31.74]
[1758387300305,19.4287766,240.7,240.64,13.59559401]
[1758387300591,6.93238057,240.69,240.65,31.76]
[1758387300767,2.78273911,240.68,240.65,31.76]
[1758387300965,6.93780621,240.67,240.65,31.76]
[1758387301187,2.78273911,240.66,240.65,31.76]
[1758387301782,3.44273911,240.66,240.65,31.76]
[1758387301993,7.59797886,240.66,240.65,31.76]
[1758387302693,7.59797886,240.66,240.58,11.75455372]
[1758387302694,7.59797886,240.66,240.61,13.59559401]
[1758387302997,7.59797886,240.66,240.59,13.59559401]
[1758387302998,1.44511519,240.64,240.59,13.59559401]
[1758387303182,2.78273911,240.63,240.6,31.76]
[1758387303387,2.78273911,240.62,240.6,31.76]
[1758387303590,2.78273911,240.61,240.6,45.35559401]
[1758387303787,2.78273911,240.61,240.6,46.02559401]
[1758387304200,2.78273911,240.61,240.6,14.26559401]
[1758387304399,2.78273911,240.61,240.6,31.76]
[1758387307496,4.1560145,240.62,240.6,31.76]
[1758387307818,4.1557578,240.63,240.6,31.76]
[1758387308006,2.78653954,240.62,240.6,31.76]
[1758387308306,2.78577208,240.62,240.6,31.76]
[1758387309084,2.78507526,240.62,240.6,31.76]
[1758387310316,7.63083306,240.63,240.6,31.76]
[1758387312204,3.47507526,240.63,240.6,31.76]
[1758387312407,7.63108976,240.64,240.6,31.76]
[1758387313710,0.69,240.63,240.6,31.76]
[1758387314007,3.47507526,240.63,240.6,31.76]
[1758387314208,3.47507526,240.63,240.61,31.76]
[1758387315292,0.69,240.63,240.61,31.76]
[1758387318110,0.69,240.63,240.62,31.76]
[1758387320492,0.69,240.63,240.62,31.74]
[1758387320998,0.69,240.63,240.58,6.27164178]
[1758387321198,0.69,240.63,240.59,32.41]
[1758387321788,0.69,240.63,240.59,36.56643265]
[1758387322321,4.1560145,240.64,240.6,14.26559401]
[1758387322493,2.77902881,240.68,240.63,1.44511519]
[1758387322842,2.77902881,240.68,240.65,1.44511519]
[1758387322992,2.77902881,240.69,240.66,32.43]
[1758387323315,2.77902881,240.7,240.66,32.43]
[1758387323501,2.77902881,240.69,240.67,0.67]
[1758387323817,2.77902881,240.7,240.67,0.67]
[1758387323998,2.77902881,240.69,240.67,0.67]
[1758387324203,2.77902881,240.7,240.68,0.67]
[1758387324514,2.77902881,240.69,240.66,6.27021954]
[1758387324694,2.77902881,240.71,240.67,31.76]
[1758387325016,2.77902881,240.7,240.67,33.87511519]
[1758387325307,2.77902881,240.69,240.67,33.87511519]
[1758387325513,2.77902881,240.7,240.67,33.87511519]
[1758387325700,2.77902881,240.69,240.67,33.87511519]
[1758387325899,2.77902881,240.7,240.67,38.03017817]
[1758387326113,2.77902881,240.69,240.67,38.03017817]
[1758387326406,2.77902881,240.7,240.67,36.58506298]
[1758387326705,0.69,240.71,240.67,36.58506298]
[1758387326706,2.77902881,240.69,240.67,36.58506298]
[1758387326891,2.77902881,240.7,240.67,36.58506298]
[1758387327089,2.77902881,240.69,240.67,36.58506298]
[1758387327306,2.77902881,240.7,240.67,36.58506298]
[1758387327499,2.77902881,240.69,240.67,36.58506298]
[1758387327698,2.77902881,240.71,240.68,0.67]
[1758387327905,2.77902881,240.7,240.69,0.67]
[1758387328111,2.77902881,240.72,240.69,32.43]
[1758387328314,2.77902881,240.71,240.69,32.43]
[1758387328505,2.77902881,240.7,240.69,32.43]
[1758387328816,0.71,240.73,240.69,32.43]
[1758387328817,2.77902881,240.72,240.69,32.43]
[1758387329115,2.77902881,240.71,240.69,32.43]
[1758387329325,2.77902881,240.7,240.69,32.43]
[1758387329497,2.77902881,240.7,240.69,36.58472184]
[1758387329699,2.77902881,240.72,240.69,36.58472184]
[1758387329914,2.77902881,240.71,240.69,36.58472184]
[1758387330193,2.77902881,240.7,240.69,36.58472184]
[1758387331925,2.77902881,240.7,240.69,35.91472184]
[1758387332136,3.48902881,240.7,240.69,31.76]
[1758387332295,3.48902881,240.7,240.69,31.74]
[1758387333132,4.934144,240.7,240.69,31.74]
[1758387333297,9.08870018,240.7,240.69,31.74]
[1758387336721,9.08870018,240.7,240.61,5.6010758]
[1758387337025,3.48902881,240.69,240.62,31.76]
[1758387337215,1.44511519,240.66,240.62,31.76]
[1758387337414,2.77902881,240.65,240.62,31.76]
[1758387337617,2.77902881,240.65,240.62,32.43]
[1758387337925,2.77902881,240.65,240.63,0.67]
[1758387338125,2.77902881,240.66,240.63,0.67]
[1758387338430,2.77902881,240.65,240.63,0.67]
[1758387338717,2.77902881,240.67,240.64,0.67]
[1758387338921,2.77902881,240.66,240.65,31.76]
[1758387341625,3.48902881,240.66,240.65,31.76]
[1758387341825,2.77902881,240.66,240.65,31.76]
[1758387343228,3.48902881,240.66,240.65,31.76]
[1758387344030,2.77902881,240.66,240.65,31.76]
[1758387344729,2.77902881,240.66,240.65,47.4707092]
[1758387345026,2.77902881,240.67,240.65,47.4707092]
[1758387345237,5.60031216,240.68,240.66,15.7107092]
[1758387345407,2.78497507,240.67,240.66,15.7107092]
[1758387346329,2.78497507,240.67,240.66,19.86594895]
[1758387347436,8.34538438,240.73,240.66,30.25404834]
[1758387347437,2.78483231,240.72,240.66,30.25404834]
[1758387347731,2.78483231,240.71,240.68,15.0407092]
[1758387347912,2.78483231,240.7,240.69,31.78]
[1758387348111,4.9399475,240.7,240.69,31.78]
[1758387348325,9.09449673,240.7,240.69,31.78]
[1758387349804,19.4808698,240.7,240.61,13.59559401]
[1758387350007,1.44511519,240.67,240.62,31.8]
[1758387350210,2.78483231,240.66,240.62,31.8]
[1758387350437,3.49483231,240.65,240.62,31.8]
[1758387350739,0.71,240.65,240.62,31.8]
[1758387351512,2.78536299,240.64,240.62,31.8]
[1758387351709,0.71,240.65,240.62,31.8]
[1758387351906,2.78543543,240.64,240.62,31.8]
[1758387352131,0.71,240.65,240.62,31.8]
[1758387352337,2.78543439,240.64,240.62,31.8]
[1758387352637,0.71,240.65,240.62,31.8]
[1758387352933,2.78562534,240.64,240.62,31.8]
[1758387353134,4.15553588,240.65,240.62,31.8]
[1758387353328,3.49557842,240.64,240.62,31.8]
[1758387353532,2.78557842,240.63,240.62,31.8]
[1758387355139,3.49557842,240.63,240.62,31.8]
[1758387355349,2.78557842,240.63,240.62,31.8]
[1758387361755,2.78557842,240.63,240.62,32.52]
[1758387362541,2.78557842,240.63,240.62,31.8]
[1758387363955,3.49557842,240.63,240.62,31.8]
[1758387365453,7.65133622,240.63,240.62,31.8]
[1758387368054,3.49557842,240.63,240.62,31.8]
[1758387368267,2.78557842,240.63,240.62,31.8]
[1758387369270,2.78557842,240.63,240.62,32.47]
[1758387369936,2.78557842,240.63,240.62,31.8]
[1758387370836,2.78557842,240.63,240.62,31.78]
[1758387374461,2.78557842,240.63,240.62,31.76]
[1758387382269,2.79243144,240.63,240.62,52.44116719]
[1758387382446,0.71,240.68,240.62,52.44116719]
[1758387382646,2.792577,240.67,240.63,13.59559401]
[1758387382874,2.792577,240.66,240.65,17.75100643]
[1758387383164,2.792577,240.66,240.65,18.42100643]
[1758387384866,2.792577,240.66,240.65,20.6806491]
[1758387385040,2.792577,240.66,240.65,20.0106491]
[1758387386476,2.792577,240.66,240.65,20.7206491]
[1758387388372,2.792577,240.66,240.65,52.4806491]
[1758387390565,2.792577,240.66,240.65,20.7206491]
[1758387390772,2.792577,240.66,240.65,52.4806491]
[1758387395276,3.472577,240.66,240.65,45.33559401]
[1758387405892,2.792577,240.66,240.65,45.33559401]
[1758387406894,2.792577,240.66,240.65,51.7506491]
[1758387407698,2.792577,240.66,240.65,52.4606491]
[1758387410000,2.792577,240.66,240.65,51.7506491]
[1758387410616,2.792577,240.66,240.65,50.20100643]
[1758387411706,3.47050796,240.71,240.65,60.58953749]
[1758387411881,2.79050796,240.7,240.68,13.59559401]
[1758387412085,0.68,240.71,240.69,35.89459407]
[1758387412287,2.79044332,240.7,240.69,49.49018808]
[1758387412483,2.79044332,240.7,240.69,52.45983075]
[1758387412783,4.26134408,240.77,240.7,13.59559401]
[1758387412983,2.79089812,240.76,240.74,2.25964267]
[1758387413203,0.1,240.77,240.75,31.74]
[1758387413392,3.47108524,240.76,240.75,31.74]
[1758387414186,3.47108524,240.76,240.75,35.89368639]
[1758387414381,2.79108524,240.76,240.75,49.4892804]
[1758387414607,2.79108524,240.76,240.75,50.1992804]
[1758387416282,0.1,240.77,240.75,50.61464903]
[1758387416607,2.89108524,240.77,240.76,13.59559401]
[1758387416819,0.1,240.77,240.76,13.59559401]
[1758387417019,3.58108524,240.77,240.76,13.59559401]
[1758387417321,0.79,240.77,240.76,13.59559401]
[1758387417839,0.1,240.77,240.76,13.59559401]
[1758387418699,0.79,240.77,240.76,45.33559401]
[1758387424631,0.1,240.77,240.76,50.17910788]
[1758387424809,0.1,240.77,240.76,51.623203]
[1758387425330,0.1,240.77,240.76,50.933203]
[1758387425506,0.1,240.77,240.76,45.33559401]
[1758387425924,0.76,240.77,240.76,45.33559401]
[1758387429725,0.1,240.77,240.76,45.33559401]
[1758387437230,0.76,240.77,240.76,45.33559401]
[1758387437617,0.1,240.77,240.76,45.33559401]
[1758387438320,0.76,240.77,240.76,45.33559401]
[1758387438533,0.1,240.77,240.76,45.33559401]
[1758387440025,0.76,240.77,240.76,13.59559401]
[1758387440339,0.76,240.77,240.76,45.31559401]
[1758387440928,0.1,240.77,240.76,45.31559401]
[1758387441131,0.1,240.77,240.76,46.00559401]
[1758387441322,0.1,240.77,240.76,14.28559401]
[1758387441529,0.1,240.77,240.76,46.00559401]
[1758387442048,0.1,240.77,240.76,45.31559401]
[1758387443542,0.1,240.77,240.76,13.59559401]
[1758387443748,4.91334136,240.77,240.76,31.72]
[1758387444533,7.69471872,240.77,240.76,31.72]
[1758387444730,4.91334136,240.77,240.76,31.72]
[1758387445331,7.69471872,240.77,240.76,31.72]
[1758387445847,4.91334136,240.77,240.76,31.72]
[1758387447435,9.13881384,240.77,240.67,1.44409512]
[1758387447638,1.44409512,240.74,240.68,45.31559401]
[1758387447834,0.67,240.73,240.7,13.59559401]
[1758387448041,0.67,240.72,240.71,45.31559401]
[1758387448443,4.82420405,240.72,240.71,13.59559401]
[1758387448626,4.82420405,240.72,240.71,45.31559401]
[1758387448948,4.15420405,240.72,240.71,45.31559401]
[1758387449751,4.82420405,240.72,240.71,45.31559401]
[1758387451639,7.61003491,240.72,240.71,45.31559401]
[1758387452847,6.94003491,240.72,240.71,45.31559401]
[1758387453360,1.44409512,240.75,240.71,45.31559401]
[1758387454436,4.15385893,240.74,240.71,45.31559401]
[1758387459440,4.15385893,240.74,240.71,13.59559401]
[1758387459638,4.15385893,240.74,240.72,31.72]
[1758387460347,5.59778151,240.75,240.72,31.72]
[1758387460861,4.15368639,240.75,240.72,31.72]
[1758387463243,1.44409512,240.75,240.72,31.72]
[1758387463662,1.44409512,240.75,240.71,13.59559401]
[1758387463863,1.44409512,240.75,240.73,31.72]
[1758387464563,1.44409512,240.75,240.71,14.29559401]
[1758387464767,1.44409512,240.75,240.72,31.72]
[1758387465160,4.15403148,240.73,240.72,31.72]
[1758387465366,6.9430173,240.73,240.72,31.72]
[1758387480294,9.87092122,240.73,240.67,0.68]
[1758387480584,2.25790392,240.71,240.68,31.72]
[1758387480780,2.78898582,240.7,240.69,31.72]
[1758387481370,6.94353505,240.7,240.69,31.72]
[1758387482496,6.94353505,240.7,240.69,32.4]
[1758387483068,6.94353505,240.7,240.69,31.72]
[1758387483983,6.94353505,240.7,240.69,32.4]
[1758387484560,6.94353505,240.7,240.69,31.72]
[1758387485495,9.20143897,240.7,240.69,31.72]
[1758387486474,9.20143897,240.7,240.69,32.4]
[1758387486671,6.94353505,240.7,240.69,32.4]
[1758387487383,2.78898582,240.7,240.69,32.4]
[1758387488569,2.78898582,240.7,240.69,45.99559401]
[1758387488773,2.78898582,240.7,240.69,52.40821977]
[1758387490790,4.15369047,240.75,240.7,13.59559401]
[1758387490993,2.79502642,240.74,240.71,0.68]
[1758387491192,2.79502642,240.73,240.72,31.72]
[1758387492580,2.79502642,240.73,240.72,32.4]
[1758387493293,2.79502642,240.73,240.72,31.72]
[1758387497694,6.9490579,240.73,240.72,31.72]
[1758387499388,9.90696182,240.73,240.72,31.72]
[1758387500605,6.9490579,240.73,240.72,31.72]
[1758387500786,9.20696182,240.73,240.72,31.72]
[1758387501798,9.20696182,240.73,240.72,32.4]
[1758387502385,9.20696182,240.73,240.72,31.72]
[1758387506012,9.89696182,240.73,240.72,31.72]
[1758387506390,13.37368352,240.73,240.72,31.72]
[1758387506712,23.75876223,240.73,240.72,31.72]
[1758387508618,23.75876223,240.73,240.68,0.69]
[1758387508802,5.05293034,240.72,240.71,31.72]
[1758387509192,5.05293034,240.72,240.71,32.41]
[1758387511712,2.79502642,240.72,240.71,32.41]
[1758387520927,2.79502642,240.72,240.71,31.72]
[1758387524722,2.79502642,240.72,240.71,32.41]
[1758387529715,2.79502642,240.72,240.71,31.72]
[1758387532125,2.79502642,240.72,240.71,32.41]
[1758387536346,2.79502642,240.72,240.71,31.72]
[1758387536531,3.49502642,240.72,240.68,13.59559401]
[1758387536729,3.49502642,240.71,240.69,31.7]
[1758387536929,2.79502642,240.7,240.69,31.7]
[1758387537138,2.79502642,240.7,240.69,45.95559401]
[1758387537346,45.06127578,240.77,240.7,13.59559401]
[1758387537529,2.79725224,240.76,240.71,0.66]
[1758387537719,2.79725224,240.75,240.72,31.7]
[1758387537919,2.79725224,240.74,240.73,0.66]
[1758387541252,2.79725224,240.74,240.72,31.7]
[1758387541554,2.79725224,240.73,240.72,32.36]
[1758387547553,2.79725224,240.73,240.72,31.7]
[1758387547960,2.79725224,240.73,240.72,32.39]
[1758387549730,2.79725224,240.73,240.72,31.7]
[1758387551736,3.51725224,240.73,240.72,31.7]
[1758387552162,7.67128372,240.73,240.72,31.7]
[1758387552955,6.95128372,240.73,240.72,31.7]
[1758387554960,2.79725224,240.73,240.72,31.7]